[Event "GrandPrix_29.05"]
[Site "Chess.com"]
[Date "2020.05.29"]
[Round "8"]
[White "Olghita64"]
[Black "OhanyanEminChess"]
[Result "0-1"]
[WhiteElo "1941"]
[BlackElo "2071"]
[TimeControl "600+2"]
[EndTime "13:06:09 PDT"]
[Termination "OhanyanEminChess won by resignation"]

1. Nf3 {[%clk 0:10:01.9]} 1... Nf6 {[%clk 0:09:54.1]} 2. c4 {[%clk 0:10:02.3]}
2... c5 {[%clk 0:09:46.6]} 3. d4 {[%clk 0:10:00.2]} 3... cxd4 {[%clk 0:09:38.7]}
4. Nxd4 {[%clk 0:10:00]} 4... d6 {[%clk 0:09:22.4]} 5. Nc3 {[%clk 0:09:52.9]}
5... a6 {[%clk 0:09:22.2]} 6. g3 {[%clk 0:09:46]} 6... g6 {[%clk 0:09:22.3]} 7.
Bg2 {[%clk 0:09:46.5]} 7... Bg7 {[%clk 0:09:23.5]} 8. O-O {[%clk 0:09:45.9]}
8... O-O {[%clk 0:09:24.9]} 9. Bg5 {[%clk 0:09:34.9]} 9... Nbd7 {[%clk
0:09:11.8]} 10. Qd2 {[%clk 0:09:32]} 10... Rb8 {[%clk 0:09:09]} 11. Rfd1 {[%clk
0:09:28.4]} 11... Ne5 {[%clk 0:08:48.1]} 12. b3 {[%clk 0:09:24.4]} 12... Bd7
{[%clk 0:08:45.2]} 13. Bh6 {[%clk 0:08:35.2]} 13... Nc6 {[%clk 0:07:48.9]} 14.
Bxg7 {[%clk 0:08:28.8]} 14... Kxg7 {[%clk 0:07:48.9]} 15. Nd5 {[%clk 0:08:14.5]}
15... Nxd5 {[%clk 0:07:42.2]} 16. Bxd5 {[%clk 0:08:06.5]} 16... Qb6 {[%clk
0:07:30.5]} 17. Nc2 {[%clk 0:07:53.1]} 17... Rfd8 {[%clk 0:07:08.7]} 18. Qg5
{[%clk 0:07:10.4]} 18... h6 {[%clk 0:06:20.4]} 19. Qf4 {[%clk 0:07:10]} 19...
Ne5 {[%clk 0:06:16.8]} 20. Ne3 {[%clk 0:07:06.1]} 20... g5 {[%clk 0:04:55.5]}
21. Qd4 {[%clk 0:06:39.2]} 21... Qxd4 {[%clk 0:04:48]} 22. Rxd4 {[%clk
0:06:39.4]} 22... Nc6 {[%clk 0:03:08.5]} 23. Rd2 {[%clk 0:06:31.9]} 23... b5
{[%clk 0:02:43]} 24. Rad1 {[%clk 0:06:09.8]} 24... Nb4 {[%clk 0:02:28.2]} 25.
Bf3 {[%clk 0:05:50.3]} 25... bxc4 {[%clk 0:02:11.9]} 26. Nxc4 {[%clk 0:05:49.4]}
26... Rdc8 {[%clk 0:02:04]} 27. Ne3 {[%clk 0:04:54.1]} 27... Be6 {[%clk
0:01:50.7]} 28. Be4 {[%clk 0:04:23.1]} 28... a5 {[%clk 0:01:31.7]} 29. Nf5+
{[%clk 0:04:20.4]} 29... Bxf5 {[%clk 0:01:17.8]} 30. Bxf5 {[%clk 0:04:20.8]}
30... Rc5 {[%clk 0:01:19.4]} 31. Bd7 {[%clk 0:04:07.4]} 31... Rb7 {[%clk
0:01:16.4]} 32. Ba4 {[%clk 0:04:07.6]} 32... Rbc7 {[%clk 0:01:16.9]} 33. Kf1
{[%clk 0:03:42.4]} 33... Rc2 {[%clk 0:00:55.2]} 34. a3 {[%clk 0:03:25.7]} 34...
Rxd2 {[%clk 0:00:26.1]} 35. Rxd2 {[%clk 0:03:26.3]} 35... Nc2 {[%clk 0:00:28]}
36. b4 {[%clk 0:03:21.2]} 36... Nxa3 {[%clk 0:00:29.4]} 37. bxa5 {[%clk
0:03:12.2]} 37... Ra7 {[%clk 0:00:29.2]} 38. Bb3 {[%clk 0:03:01.2]} 38... Rxa5
{[%clk 0:00:25.9]} 39. Ra2 {[%clk 0:03:01.4]} 39... Ra7 {[%clk 0:00:16]} 40. Bc4
{[%clk 0:02:46.2]} 40... Nb5 {[%clk 0:00:14.9]} 41. Rb2 {[%clk 0:02:41.5]} 41...
Nd4 {[%clk 0:00:12]} 42. Kg2 {[%clk 0:02:37.8]} 42... Nc6 {[%clk 0:00:07.8]} 43.
Bd5 {[%clk 0:02:33.7]} 43... Ne5 {[%clk 0:00:08.3]} 44. f4 {[%clk 0:02:33.5]}
44... gxf4 {[%clk 0:00:10.2]} 45. gxf4 {[%clk 0:02:34.2]} 45... Ng6 {[%clk
0:00:12.1]} 46. Kf3 {[%clk 0:02:32.5]} 46... Kf6 {[%clk 0:00:10.9]} 47. Rb8
{[%clk 0:02:25.9]} 47... e6 {[%clk 0:00:09.2]} 48. Be4 {[%clk 0:02:23.2]} 48...
Ra3+ {[%clk 0:00:07.7]} 49. e3 {[%clk 0:02:22.9]} 49... Nh4+ {[%clk 0:00:06.1]}
50. Kf2 {[%clk 0:02:20.5]} 50... d5 {[%clk 0:00:06.1]} 51. Bb1 {[%clk
0:02:08.7]} 51... Ra1 {[%clk 0:00:07.1]} 52. Rb7 {[%clk 0:02:01]} 52... Ng6
{[%clk 0:00:05.8]} 53. Rb6 {[%clk 0:01:40.4]} 53... Ne7 {[%clk 0:00:05.8]} 54.
Kf3 {[%clk 0:01:34.9]} 54... Ra3 {[%clk 0:00:05.7]} 55. Kf2 {[%clk 0:01:29.4]}
55... Nf5 {[%clk 0:00:04.5]} 56. Bxf5 {[%clk 0:01:22.5]} 56... Kxf5 {[%clk
0:00:06.4]} 57. Rb7 {[%clk 0:01:22.3]} 57... f6 {[%clk 0:00:05.5]} 58. Rb6
{[%clk 0:01:19.5]} 58... Ra2+ {[%clk 0:00:05.3]} 59. Kg3 {[%clk 0:01:19]} 59...
Re2 {[%clk 0:00:06.2]} 60. Rb3 {[%clk 0:01:16.4]} 60... Ke4 {[%clk 0:00:07.4]}
61. Rb6 {[%clk 0:00:57]} 61... Rxe3+ {[%clk 0:00:05.4]} 62. Kg4 {[%clk
0:00:51.6]} 62... f5+ {[%clk 0:00:06.7]} 63. Kh5 {[%clk 0:00:52.1]} 63... Rh3+
{[%clk 0:00:04.5]} 64. Kg6 {[%clk 0:00:52.9]} 64... Kxf4 {[%clk 0:00:06]} 65.
Rxe6 {[%clk 0:00:53.1]} 65... Rxh2 {[%clk 0:00:07.5]} 66. Rf6 {[%clk 0:00:53.8]}
66... Rg2+ {[%clk 0:00:08.3]} 67. Kxh6 {[%clk 0:00:54.4]} 67... d4 {[%clk
0:00:09.9]} 68. Rd6 {[%clk 0:00:54.9]} 68... Ke5 {[%clk 0:00:08.7]} 69. Rd8
{[%clk 0:00:55.3]} 69... f4 {[%clk 0:00:09.3]} 70. Kh5 {[%clk 0:00:56.6]} 70...
Ke4 {[%clk 0:00:09.8]} 71. Kh4 {[%clk 0:00:57.1]} 71... f3 {[%clk 0:00:11.4]}
72. Kh3 {[%clk 0:00:57.7]} 72... Rg7 {[%clk 0:00:13]} 73. Re8+ {[%clk
0:00:57.8]} 73... Kd3 {[%clk 0:00:14.4]} 74. Rf8 {[%clk 0:00:58.7]} 74... Ke2
{[%clk 0:00:15.6]} 75. Re8+ {[%clk 0:00:59.8]} 75... Kf1 {[%clk 0:00:08.4]} 76.
Rd8 {[%clk 0:00:59.9]} 76... f2 {[%clk 0:00:08.9]} 77. Rxd4 {[%clk 0:00:50.3]}
77... Kg1 {[%clk 0:00:09]} 0-1

[Event "GrandPrix_29.05"]
[Site "Chess.com"]
[Date "2020.05.29"]
[Round "8"]
[White "cassoulet"]
[Black "bsnsun"]
[Result "1-0"]
[WhiteElo "2054"]
[BlackElo "1859"]
[TimeControl "600+2"]
[EndTime "13:06:21 PDT"]
[Termination "cassoulet won by resignation"]

1. e4 {[%clk 0:10:01.9]} 1... c5 {[%clk 0:10:00.5]} 2. Nf3 {[%clk 0:10:02.7]}
2... d6 {[%clk 0:10:01.7]} 3. d4 {[%clk 0:10:03.4]} 3... cxd4 {[%clk 0:10:02.9]}
4. Nxd4 {[%clk 0:10:05.3]} 4... Nf6 {[%clk 0:10:04.1]} 5. Nc3 {[%clk 0:10:06.8]}
5... a6 {[%clk 0:10:05.1]} 6. g3 {[%clk 0:10:07.8]} 6... e6 {[%clk 0:10:01.4]}
7. Bg2 {[%clk 0:10:08.5]} 7... Be7 {[%clk 0:10:02.5]} 8. O-O {[%clk 0:10:09.7]}
8... Qc7 {[%clk 0:10:03.6]} 9. Be3 {[%clk 0:10:10.9]} 9... O-O {[%clk
0:09:55.5]} 10. Qe2 {[%clk 0:10:11.9]} 10... Nc6 {[%clk 0:09:49.2]} 11. Rad1
{[%clk 0:10:12.4]} 11... Nxd4 {[%clk 0:09:18.4]} 12. Bxd4 {[%clk 0:10:14.3]}
12... Rb8 {[%clk 0:09:19.2]} 13. e5 {[%clk 0:10:01.7]} 13... Ne8 {[%clk
0:08:58.3]} 14. exd6 {[%clk 0:09:55.6]} 14... Bxd6 {[%clk 0:08:53.3]} 15. Ne4
{[%clk 0:09:51.4]} 15... Be7 {[%clk 0:08:31.3]} 16. c4 {[%clk 0:09:42.4]} 16...
b6 {[%clk 0:08:19]} 17. f4 {[%clk 0:09:31.4]} 17... Bb7 {[%clk 0:08:18.4]} 18.
Be5 {[%clk 0:09:29.7]} 18... Qc8 {[%clk 0:08:04.5]} 19. Bxb8 {[%clk 0:09:26.3]}
19... Qxb8 {[%clk 0:08:05.4]} 20. Rd7 {[%clk 0:09:26.5]} 20... Bxe4 {[%clk
0:07:41.2]} 21. Bxe4 {[%clk 0:09:26.1]} 21... Bc5+ {[%clk 0:07:41.8]} 22. Kg2
{[%clk 0:09:23.5]} 22... Nf6 {[%clk 0:07:18.8]} 23. Rd3 {[%clk 0:09:23.9]} 23...
Qc7 {[%clk 0:07:09.9]} 24. Bf3 {[%clk 0:09:23.6]} 24... g6 {[%clk 0:06:59]} 25.
Qe5 {[%clk 0:09:20.3]} 25... Qe7 {[%clk 0:06:59.5]} 26. Rfd1 {[%clk 0:09:18.3]}
26... a5 {[%clk 0:06:57.9]} 27. g4 {[%clk 0:09:13.5]} 27... Ne8 {[%clk
0:06:29.3]} 28. Rd7 {[%clk 0:08:53]} 28... Qh4 {[%clk 0:06:28.7]} 29. R7d2
{[%clk 0:08:25.1]} 29... h6 {[%clk 0:06:05]} 30. h3 {[%clk 0:07:44]} 30... Bb4
{[%clk 0:05:34.4]} 31. Rd8 {[%clk 0:07:27.9]} 31... Bc5 {[%clk 0:05:30.7]} 32.
R8d2 {[%clk 0:06:41.6]} 32... Ng7 {[%clk 0:05:25.3]} 33. a3 {[%clk 0:06:22.4]}
33... Be7 {[%clk 0:04:24.8]} 34. Rb1 {[%clk 0:05:25.2]} 34... Rc8 {[%clk
0:04:10.5]} 35. Qe4 {[%clk 0:04:29.1]} 35... f5 {[%clk 0:03:14.3]} 36. Qd4
{[%clk 0:03:42.7]} 36... Bc5 {[%clk 0:02:06.8]} 37. Qe5 {[%clk 0:03:27.7]} 37...
Rf8 {[%clk 0:02:00.2]} 38. b4 {[%clk 0:03:17.2]} 38... axb4 {[%clk 0:02:00.6]}
39. axb4 {[%clk 0:03:19.1]} 39... Be7 {[%clk 0:02:00.2]} 40. c5 {[%clk 0:03:14]}
40... bxc5 {[%clk 0:01:52.1]} 41. bxc5 {[%clk 0:03:15.9]} 41... g5 {[%clk
0:01:39.3]} 42. fxg5 {[%clk 0:02:10.1]} 42... fxg4 {[%clk 0:01:35.7]} 43. Bxg4
{[%clk 0:02:02.7]} 43... Bxg5 {[%clk 0:01:22]} 44. Bxe6+ {[%clk 0:01:56.5]}
44... Kh8 {[%clk 0:01:21.3]} 45. Rb7 {[%clk 0:01:49.1]} 45... Bf6 {[%clk
0:01:18.2]} 46. Rd4 {[%clk 0:01:24.1]} 46... Qxd4 {[%clk 0:01:05.6]} 47. Qxd4
{[%clk 0:01:19.1]} 47... Bxd4 {[%clk 0:01:06.5]} 48. Bg4 {[%clk 0:01:11.6]}
48... Bxc5 {[%clk 0:01:07]} 49. Rc7 {[%clk 0:01:12.7]} 49... Bd4 {[%clk
0:01:07.6]} 50. Rc6 {[%clk 0:01:13.7]} 50... Kh7 {[%clk 0:01:07.4]} 51. Bf3
{[%clk 0:01:13.9]} 51... Rb8 {[%clk 0:01:01.2]} 52. Be4+ {[%clk 0:01:14.3]}
52... Kg8 {[%clk 0:01:01.6]} 53. Rxh6 {[%clk 0:01:15.2]} 53... Rb2+ {[%clk
0:01:01.5]} 54. Kf3 {[%clk 0:01:16.1]} 54... Rf2+ {[%clk 0:01:01.2]} 55. Kg3
{[%clk 0:01:16.2]} 55... Re2 {[%clk 0:00:57.7]} 56. Bd5+ {[%clk 0:01:15.1]}
56... Kf8 {[%clk 0:00:57.5]} 57. Rh8+ {[%clk 0:01:17]} 57... Ke7 {[%clk
0:00:57.2]} 58. Kg4 {[%clk 0:01:15.2]} 58... Be5 {[%clk 0:00:52.2]} 59. h4
{[%clk 0:01:13.2]} 59... Re3 {[%clk 0:00:52.1]} 60. Bf3 {[%clk 0:01:03.9]} 60...
Re1 {[%clk 0:00:52.8]} 61. Bc6 {[%clk 0:00:57.2]} 61... Ne6 {[%clk 0:00:33.2]}
62. Rh7+ {[%clk 0:00:54.3]} 62... Kf6 {[%clk 0:00:33.4]} 63. Be8 {[%clk
0:00:49.9]} 63... Re3 {[%clk 0:00:28.1]} 64. Rf7+ {[%clk 0:00:47.5]} 64... Kg6
{[%clk 0:00:25]} 65. Rf3+ {[%clk 0:00:45.3]} 65... Kg7 {[%clk 0:00:25.7]} 66.
Rxe3 {[%clk 0:00:46]} 66... Kf6 {[%clk 0:00:27]} 67. Rf3+ {[%clk 0:00:45.6]}
67... Nf4 {[%clk 0:00:19.4]} 68. h5 {[%clk 0:00:41]} 68... Kg7 {[%clk
0:00:17.5]} 69. Bd7 {[%clk 0:00:38.6]} 69... Bd6 {[%clk 0:00:17.3]} 70. Rb3
{[%clk 0:00:36]} 70... Nd5 {[%clk 0:00:17.1]} 71. Bf5 {[%clk 0:00:32.9]} 71...
Nf6+ {[%clk 0:00:17.7]} 72. Kg5 {[%clk 0:00:32.3]} 72... Be7 {[%clk 0:00:18.7]}
73. h6+ {[%clk 0:00:32.1]} 73... Kf7 {[%clk 0:00:19.5]} 74. Bg6+ {[%clk
0:00:33.3]} 74... Ke6 {[%clk 0:00:15.3]} 75. Re3+ {[%clk 0:00:33.3]} 75... Kd6
{[%clk 0:00:15.9]} 76. Kf5 {[%clk 0:00:33.5]} 76... Kd7 {[%clk 0:00:15.7]} 77.
h7 {[%clk 0:00:33.2]} 77... Nxh7 {[%clk 0:00:15]} 78. Bxh7 {[%clk 0:00:35.1]}
78... Bd6 {[%clk 0:00:15.9]} 79. Rd3 {[%clk 0:00:35.4]} 79... Kc6 {[%clk
0:00:17.1]} 80. Ke6 {[%clk 0:00:36.2]} 80... Bc5 {[%clk 0:00:18.4]} 81. Rc3
{[%clk 0:00:36.5]} 81... Kb5 {[%clk 0:00:19.6]} 82. Bd3+ {[%clk 0:00:37.4]}
82... Kb4 {[%clk 0:00:20.8]} 83. Rc4+ {[%clk 0:00:38.4]} 1-0

[Event "GrandPrix_29.05"]
[Site "Chess.com"]
[Date "2020.05.29"]
[Round "8"]
[White "Luq27"]
[Black "Borsuk_Konstantin"]
[Result "1/2-1/2"]
[WhiteElo "2056"]
[BlackElo "1873"]
[TimeControl "600+2"]
[EndTime "13:06:23 PDT"]
[Termination "Game drawn by repetition"]

1. Nf3 {[%clk 0:10:01.9]} 1... b6 {[%clk 0:09:58.3]} 2. g3 {[%clk 0:09:59.4]}
2... Bb7 {[%clk 0:09:59.7]} 3. Bg2 {[%clk 0:10:00.6]} 3... Nf6 {[%clk
0:09:59.1]} 4. O-O {[%clk 0:10:01.3]} 4... g6 {[%clk 0:09:58.4]} 5. c4 {[%clk
0:09:58.7]} 5... Bg7 {[%clk 0:09:59.1]} 6. d4 {[%clk 0:09:57.9]} 6... O-O {[%clk
0:09:58.9]} 7. Qc2 {[%clk 0:09:10.8]} 7... c5 {[%clk 0:09:30.8]} 8. d5 {[%clk
0:09:01.8]} 8... d6 {[%clk 0:09:09.1]} 9. Nc3 {[%clk 0:09:01.8]} 9... e6 {[%clk
0:08:48.6]} 10. e4 {[%clk 0:08:59.9]} 10... exd5 {[%clk 0:08:48.4]} 11. exd5
{[%clk 0:08:48.6]} 11... a6 {[%clk 0:08:39.4]} 12. a4 {[%clk 0:08:47.4]} 12...
Bc8 {[%clk 0:08:38.2]} 13. Re1 {[%clk 0:08:41.5]} 13... Bf5 {[%clk 0:08:27.9]}
14. Qb3 {[%clk 0:08:42.4]} 14... h6 {[%clk 0:08:12.7]} 15. Nh4 {[%clk
0:08:29.2]} 15... Bc8 {[%clk 0:08:10.5]} 16. Qc2 {[%clk 0:08:28.6]} 16... Ra7
{[%clk 0:08:03.1]} 17. Bd2 {[%clk 0:08:18.4]} 17... Re8 {[%clk 0:07:59.1]} 18.
Rxe8+ {[%clk 0:08:15.4]} 18... Qxe8 {[%clk 0:07:59.1]} 19. Qb3 {[%clk
0:07:27.1]} 19... g5 {[%clk 0:07:35.2]} 20. Nf3 {[%clk 0:07:12.3]} 20... Qd8
{[%clk 0:07:35.3]} 21. Re1 {[%clk 0:06:10.1]} 21... Bf5 {[%clk 0:07:27.2]} 22.
h4 {[%clk 0:06:00.7]} 22... g4 {[%clk 0:07:12]} 23. Nh2 {[%clk 0:06:01.4]} 23...
Nbd7 {[%clk 0:07:07.7]} 24. Bf4 {[%clk 0:05:58.4]} 24... Nf8 {[%clk 0:06:59.4]}
25. Nf1 {[%clk 0:05:43.8]} 25... Ng6 {[%clk 0:06:52.5]} 26. Bd2 {[%clk
0:05:37.4]} 26... Ne5 {[%clk 0:06:43.3]} 27. Ne3 {[%clk 0:05:26.3]} 27... Bg6
{[%clk 0:06:35.4]} 28. Ra1 {[%clk 0:04:59.4]} 28... Re7 {[%clk 0:06:04.3]} 29.
Ne2 {[%clk 0:04:53.2]} 29... Be4 {[%clk 0:04:57.4]} 30. Nf4 {[%clk 0:04:45.9]}
30... Nf3+ {[%clk 0:04:45.8]} 31. Bxf3 {[%clk 0:04:45.5]} 31... gxf3 {[%clk
0:04:44.6]} 32. Bc3 {[%clk 0:04:39]} 32... Bh7 {[%clk 0:04:08.5]} 33. a5 {[%clk
0:04:38.5]} 33... bxa5 {[%clk 0:04:04]} 34. Qd1 {[%clk 0:04:13.4]} 34... Be4
{[%clk 0:03:57.1]} 35. Bxa5 {[%clk 0:04:02.5]} 35... Qb8 {[%clk 0:03:45.1]} 36.
Bc3 {[%clk 0:04:03.1]} 36... Nd7 {[%clk 0:03:44.9]} 37. Rxa6 {[%clk 0:03:51.1]}
37... Bxc3 {[%clk 0:03:42.8]} 38. bxc3 {[%clk 0:03:53]} 38... Ne5 {[%clk
0:03:42.3]} 39. Qa1 {[%clk 0:03:04]} 39... Kg7 {[%clk 0:03:10.2]} 40. Nh5+
{[%clk 0:02:59.9]} 40... Kg6 {[%clk 0:03:10.2]} 41. Ra8 {[%clk 0:02:50.4]} 41...
Qb1+ {[%clk 0:03:08.9]} 42. Qxb1 {[%clk 0:02:50.3]} 42... Bxb1 {[%clk
0:03:09.5]} 43. g4 {[%clk 0:02:33.1]} 43... Nxg4 {[%clk 0:02:31]} 44. Nf4+
{[%clk 0:02:00.8]} 44... Kf6 {[%clk 0:02:27.4]} 45. Nh5+ {[%clk 0:01:52.1]}
45... Kg6 {[%clk 0:02:27.9]} 46. Nf4+ {[%clk 0:01:52.4]} 46... Kf6 {[%clk
0:02:23]} 47. Nxg4+ {[%clk 0:01:35.6]} 47... Kf5 {[%clk 0:02:23.3]} 48. Ne3+
{[%clk 0:01:23.9]} 48... Kxf4 {[%clk 0:02:23]} 49. Rd8 {[%clk 0:01:23.3]} 49...
Ke5 {[%clk 0:00:55.1]} 50. Rh8 {[%clk 0:01:15.6]} 50... f5 {[%clk 0:00:29.7]}
51. Rxh6 {[%clk 0:01:07.9]} 51... f4 {[%clk 0:00:25.9]} 52. Ng4+ {[%clk
0:00:49.3]} 52... Kf5 {[%clk 0:00:20.1]} 53. Nf6 {[%clk 0:00:42.4]} 53... Re1+
{[%clk 0:00:20.7]} 54. Kh2 {[%clk 0:00:42.7]} 54... Rf1 {[%clk 0:00:21.1]} 55.
Ne8 {[%clk 0:00:34.4]} 55... Rxf2+ {[%clk 0:00:21.7]} 56. Kh3 {[%clk 0:00:33]}
56... Ke4 {[%clk 0:00:20.2]} 57. Nxd6+ {[%clk 0:00:31.1]} 57... Kd3 {[%clk
0:00:21]} 58. Rf6 {[%clk 0:00:32.1]} 58... Ke3 {[%clk 0:00:17.6]} 59. Re6+
{[%clk 0:00:26.2]} 59... Kd2 {[%clk 0:00:18.3]} 60. Rf6 {[%clk 0:00:27.2]} 60...
Ke3 {[%clk 0:00:13.9]} 61. Re6+ {[%clk 0:00:20.2]} 61... Kd2 {[%clk 0:00:14.7]}
62. Ne4+ {[%clk 0:00:16.4]} 62... Bxe4 {[%clk 0:00:14.2]} 63. Rxe4 {[%clk
0:00:18.3]} 63... Re2 {[%clk 0:00:09.8]} 64. Rxf4 {[%clk 0:00:17.6]} 64... f2
{[%clk 0:00:10.7]} 65. d6 {[%clk 0:00:16.3]} 65... Ke1 {[%clk 0:00:10.7]} 66. d7
{[%clk 0:00:09.9]} 66... Rd2 {[%clk 0:00:11.8]} 67. Re4+ {[%clk 0:00:11.2]}
67... Kf1 {[%clk 0:00:09.2]} 68. Re7 {[%clk 0:00:07.7]} 68... Kg1 {[%clk
0:00:05.1]} 69. Rg7+ {[%clk 0:00:07.9]} 69... Kh1 {[%clk 0:00:06]} 70. Rf7
{[%clk 0:00:08.7]} 70... Kg1 {[%clk 0:00:07]} 71. Rg7+ {[%clk 0:00:08.4]} 71...
Kh1 {[%clk 0:00:07.6]} 72. Rf7 {[%clk 0:00:08.3]} 72... Kg1 {[%clk 0:00:08.1]}
73. Rg7+ {[%clk 0:00:07]} 1/2-1/2

[Event "GrandPrix_29.05"]
[Site "Chess.com"]
[Date "2020.05.29"]
[Round "8"]
[White "Kiril1965"]
[Black "Angry_Twin"]
[Result "1-0"]
[WhiteElo "2702"]
[BlackElo "2498"]
[TimeControl "600+2"]
[EndTime "13:06:25 PDT"]
[Termination "Kiril1965 won by resignation"]

1. d4 {[%clk 0:10:00.8]} 1... Nf6 {[%clk 0:09:59.9]} 2. Nf3 {[%clk 0:09:54.6]}
2... d5 {[%clk 0:09:59.6]} 3. c4 {[%clk 0:09:48.6]} 3... e6 {[%clk 0:09:59.7]}
4. Nc3 {[%clk 0:09:47.8]} 4... c6 {[%clk 0:09:59.8]} 5. Qb3 {[%clk 0:09:29.4]}
5... dxc4 {[%clk 0:09:56.9]} 6. Qxc4 {[%clk 0:09:29.3]} 6... b5 {[%clk
0:09:58.3]} 7. Qd3 {[%clk 0:09:29.2]} 7... Bb7 {[%clk 0:09:58.5]} 8. Bg5 {[%clk
0:09:26.6]} 8... Nbd7 {[%clk 0:09:55.2]} 9. e4 {[%clk 0:09:27.2]} 9... b4 {[%clk
0:09:52.3]} 10. Na4 {[%clk 0:09:21.8]} 10... c5 {[%clk 0:09:03.3]} 11. Nxc5
{[%clk 0:08:00.8]} 11... Bxc5 {[%clk 0:07:57.2]} 12. dxc5 {[%clk 0:07:35.4]}
12... Bxe4 {[%clk 0:07:53.7]} 13. Qd6 {[%clk 0:07:11.7]} 13... Qe7 {[%clk
0:07:28.4]} 14. Bb5 {[%clk 0:07:02]} 14... Qxd6 {[%clk 0:07:26.6]} 15. cxd6
{[%clk 0:07:02.5]} 15... O-O {[%clk 0:07:22.3]} 16. Ke2 {[%clk 0:06:49.4]} 16...
Rab8 {[%clk 0:07:20.6]} 17. Bxd7 {[%clk 0:06:41.4]} 17... Nxd7 {[%clk
0:07:22.5]} 18. Rhc1 {[%clk 0:06:37.9]} 18... f6 {[%clk 0:05:53.5]} 19. Be3
{[%clk 0:06:22.3]} 19... Rb7 {[%clk 0:05:54.2]} 20. Rc7 {[%clk 0:06:20.7]} 20...
e5 {[%clk 0:05:25.7]} 21. Rac1 {[%clk 0:06:08.4]} 21... Kf7 {[%clk 0:04:24.9]}
22. Rxb7 {[%clk 0:05:39.1]} 22... Bxb7 {[%clk 0:04:26.8]} 23. Rc7 {[%clk
0:05:38.8]} 23... Ba6+ {[%clk 0:04:23.8]} 24. Ke1 {[%clk 0:05:37.1]} 24... Ke6
{[%clk 0:04:24.8]} 25. Rxa7 {[%clk 0:05:30.6]} 25... Bc4 {[%clk 0:04:13.8]} 26.
b3 {[%clk 0:05:08]} 26... Bd5 {[%clk 0:04:12.2]} 27. Ra4 {[%clk 0:05:05.1]}
27... Kxd6 {[%clk 0:03:58.6]} 28. Bd2 {[%clk 0:04:35.9]} 28... Rc8 {[%clk
0:03:57.3]} 29. Bxb4+ {[%clk 0:04:33.4]} 29... Ke6 {[%clk 0:03:45.6]} 30. Ra6+
{[%clk 0:04:31.5]} 30... Kf7 {[%clk 0:03:46.5]} 31. Rd6 {[%clk 0:04:13.8]} 31...
Be6 {[%clk 0:03:47.5]} 32. Kd1 {[%clk 0:04:06.7]} 32... Ra8 {[%clk 0:03:48]} 33.
Rd2 {[%clk 0:04:06.2]} 33... Nb6 {[%clk 0:03:48.8]} 34. Rc2 {[%clk 0:03:46.7]}
34... g5 {[%clk 0:02:46.6]} 35. Ne1 {[%clk 0:03:40.8]} 35... e4 {[%clk
0:02:37.9]} 36. Bd2 {[%clk 0:03:36]} 36... h6 {[%clk 0:02:35.3]} 37. f3 {[%clk
0:03:14.3]} 37... f5 {[%clk 0:02:31.2]} 38. Rc7+ {[%clk 0:03:13.4]} 38... Nd7
{[%clk 0:02:27.2]} 39. Rc2 {[%clk 0:03:05.2]} 39... Nb6 {[%clk 0:02:19.4]} 40.
Ke2 {[%clk 0:02:58.1]} 40... Nd5 {[%clk 0:01:48.4]} 41. g3 {[%clk 0:02:57.9]}
41... e3 {[%clk 0:01:32.2]} 42. Bxe3 {[%clk 0:02:52.1]} 42... Rxa2 {[%clk
0:01:32.6]} 43. Rxa2 {[%clk 0:02:47.6]} 43... Nc3+ {[%clk 0:01:33.6]} 44. Kd3
{[%clk 0:02:39.6]} 44... Nxa2 {[%clk 0:01:35.5]} 45. Bd2 {[%clk 0:02:39.9]}
45... Bxb3 {[%clk 0:01:36.7]} 46. Kd4 {[%clk 0:02:40.8]} 46... Kf6 {[%clk
0:01:20.7]} 47. Nd3 {[%clk 0:02:38.3]} 47... Bd1 {[%clk 0:01:18.5]} 48. f4
{[%clk 0:02:38.5]} 48... Be2 {[%clk 0:01:09.6]} 49. Ne5 {[%clk 0:02:32.9]} 49...
gxf4 {[%clk 0:01:07.1]} 50. gxf4 {[%clk 0:02:33.2]} 50... Ke6 {[%clk 0:01:07.4]}
51. Kc5 {[%clk 0:02:33.5]} 51... Bd1 {[%clk 0:00:59.5]} 52. Nc6 {[%clk
0:02:33.5]} 52... Kf6 {[%clk 0:00:53.9]} 53. Nd4 {[%clk 0:02:32.4]} 53... Kg6
{[%clk 0:00:52.7]} 54. Kd6 {[%clk 0:02:27.4]} 54... Bg4 {[%clk 0:00:20.8]} 55.
Ke5 {[%clk 0:02:23.8]} 55... Bh3 {[%clk 0:00:20.9]} 56. Ke6 {[%clk 0:02:10.5]}
56... Bg4 {[%clk 0:00:21.7]} 57. Nc6 {[%clk 0:02:11]} 57... Bh3 {[%clk
0:00:21.8]} 58. Ne7+ {[%clk 0:02:00.8]} 58... Kh5 {[%clk 0:00:21.6]} 59. Kf6
{[%clk 0:02:00.8]} 59... Kg4 {[%clk 0:00:20]} 60. Nxf5 {[%clk 0:02:01.7]} 60...
Kf3 {[%clk 0:00:16.9]} 61. Ng3 {[%clk 0:01:51.2]} 61... h5 {[%clk 0:00:16.6]}
62. Nxh5 {[%clk 0:01:50.7]} 62... Ke2 {[%clk 0:00:17.4]} 63. Ba5 {[%clk
0:01:48]} 63... Nc1 {[%clk 0:00:18]} 64. Kg5 {[%clk 0:01:46.6]} 64... Nd3 {[%clk
0:00:11.9]} 65. f5 {[%clk 0:01:45.4]} 65... Kf3 {[%clk 0:00:13.1]} 66. Bc7
{[%clk 0:01:36.4]} 66... Nc5 {[%clk 0:00:14]} 67. Nf4 {[%clk 0:01:29.1]} 67...
Bf1 {[%clk 0:00:06.8]} 68. h4 {[%clk 0:01:23.2]} 68... Bc4 {[%clk 0:00:04]} 69.
h5 {[%clk 0:01:20.6]} 69... Bg8 {[%clk 0:00:05.1]} 70. Kg6 {[%clk 0:01:17.7]}
70... Ne4 {[%clk 0:00:04.7]} 71. f6 {[%clk 0:01:05.9]} 71... Kg4 {[%clk
0:00:05.2]} 72. h6 {[%clk 0:01:02.9]} 72... Ng5 {[%clk 0:00:05.5]} 73. Kg7
{[%clk 0:01:01]} 73... Bc4 {[%clk 0:00:06.3]} 74. h7 {[%clk 0:00:59.5]} 74...
Nxh7 {[%clk 0:00:07.6]} 75. Kxh7 {[%clk 0:01:00.6]} 75... Kf5 {[%clk 0:00:09.5]}
76. Kg7 {[%clk 0:01:01.6]} 76... Bb3 {[%clk 0:00:11]} 77. Ne2 {[%clk 0:00:56.3]}
77... Bc4 {[%clk 0:00:11]} 78. Nd4+ {[%clk 0:00:56.2]} 78... Ke4 {[%clk
0:00:12.4]} 79. Nb5 {[%clk 0:00:57]} 79... Bb3 {[%clk 0:00:09.7]} 80. Kf8 {[%clk
0:00:54.9]} 80... Kd3 {[%clk 0:00:04.6]} 81. Ke7 {[%clk 0:00:54.9]} 81... Ke4
{[%clk 0:00:06]} 82. Nd6+ {[%clk 0:00:54]} 82... Kf4 {[%clk 0:00:07.1]} 83. Nc4+
{[%clk 0:00:52.4]} 1-0